{"text_format":"3","workbook":"xlsx","n_sheets":2,"sheets":["X-RAY, DETECTORS & UPS","AD HOC"],"not_rendered":{"images":2},"read":"whole","date_system":"1900"}

{"sheet":"X-RAY, DETECTORS & UPS","index":0,"n_rows":17,"n_cols":19,"rows_kept":17,"merged":[[3,0,3,14],[4,0,4,18],[5,4,5,8],[6,0,6,2],[6,9,6,14],[10,0,10,9],[11,0,11,9],[12,10,12,11],[12,12,12,14],[13,10,13,11],[13,12,13,14],[14,10,14,11],[14,12,14,14],[16,0,18,7]]}
[]
[]
[]
[]
["GPAA 03/2023 RFP-Leasing of X-Ray Machines, Walkthrough Metal Detectors and UPS to the GPAA Head Office, Regional and Satellite Offices across South Africa for a period of 5 years/60 months, on and as and when required basis."]
["Site","Description of item","Operational Time ","Qty (B1) PER FULL MACHINE","Rental per month",{"$nulls":4},"Months (B2)","Year 1 (C):  Cost VAT excl. (A1xB1xB = C)","Months (D)","Year 2 (E):  VAT excl. (A2 x B1x D = E)","Months (F)","Year 3 (G): VAT excl. (A3 x B1x F = G)","Months (F)","Year 4 (G): VAT excl. (A4 x B1x G = H)","Months (F)","Year 5 (G): VAT excl. (A5 x B1x H = I)"]
[{"$nulls":4},"Year 1: A1","Year 2: A2","Year 3: A3","Year 4: A4","Year 5: A5"]
["GPAA Office and/or events as and when required ","Equipment specification as per pages 02-10 of RFP","24hours",1,{"$nulls":5},12,{"$f":"E8*D8*J8","v":{"v":0,"d":"R0.00"}},12,{"$f":"F8*D8*L8","v":{"v":0,"d":"R0.00"}},12,{"$f":"G8*D8*N8","v":{"v":0,"d":"R0.00"}},12,{"$f":"H8*D8*P8","v":{"v":0,"d":"R0.00"}},12,{"$f":"I8*D8*R8","v":{"v":0,"d":"R0.00"}}]
[]
[]
[{"$nulls":10},{"$f":"SUM(K8:K10)","v":{"v":0,"d":"R0.00"}},null,{"$f":"SUM(M8:M10)","v":{"v":0,"d":"R0.00"}},null,{"$f":"SUM(O8:O10)","v":{"v":0,"d":"R0.00"}},null,{"$f":"SUM(Q8:Q10)","v":{"v":0,"d":"R0.00"}},null,{"$f":"SUM(S8:S10)","v":{"v":0,"d":"R0.00"}}]
["Delegated Director Names:",{"$nulls":9},"Year1",null,"Year2",null,"Year3",null,"Year4",null,"Year5"]
[{"$nulls":10},"Total Bid Price Per Machine  Excl. VAT",null,{"$f":"K11+M11+O11+Q11+S11","v":{"v":0,"d":"R0.00"}}]
["Bidder Signature :","__________________________",{"$nulls":8},"VAT @ 15%",null,{"$f":"M13*0.15","v":{"v":0,"d":"R0.00"}}]
["Date:     /      /2023",{"$nulls":9},"Total Bid Price Per Machine  Incl VAT",null,{"$f":"M13+M14","v":{"v":0,"d":"R0.00"}}]
[]
["NB: Completion and submission of another form of pricing other than the template issued, incomplete completion of the pricing schedule or amendments made to the template will result in the bid being disqualified."]

{"sheet":"AD HOC","index":1,"n_rows":19,"n_cols":8,"rows_kept":19,"merged":[[1,0,1,7],[2,0,2,7],[3,3,3,7],[4,0,4,1],[8,0,8,7],[9,0,9,7],[10,0,12,7],[13,0,17,7],[18,0,20,7]]}
[]
[]
["ADHOC RATES:  RELOCATION OF RENTED RAY MACHINE FOR PERIOD OF 60 MONTHS"]
["Site","Description of item","Price per machine to be relocated  relocation ","Relocation cost per machine"]
[{"$nulls":3},"Year 1 - Cost VAT excl","Year 2 - Cost VAT excl","Year 3 - Cost VAT excl","Year 4 - Cost VAT excl","Year 5 - Cost VAT excl"]
["GPAA OFFICES","Relocation and set-up costs per machine ",1]
["VAT @ 15%",null,null,{"$f":"D6*0.15","v":0},{"$f":"E6*0.15","v":0},0,0,0]
["Total Bid Price Per Machine  Incl VAT",null,null,{"$f":"SUM(D6:D7)","v":0},{"$f":"SUM(E6:E7)","v":0},0,0,0]
[]
[]
["Current location rate per machine (e.g Polokwane CBD to Within Polokwane CBD with less than 10 km radius).  The cost include travelling and associated factors in relocation of the  Xray machine"]
[]
[]
["This cost will be used as and when required basis, therefore not going to form part of contract value"]
[]
[]
[]
[]
["NB: Completion and submission of another form of pricing other than the template issued, incomplete completion of the pricing schedule or amendments made to the template will result in the bid being disqualified."]